[Event "Titled Tuesday Blitz March 21 Early 2023"]
[White "Girsh, Daniel"]
[Black "Wahedi, Ahmad Siar"]
[WhiteFideId "30949190"]
[BlackFideId "4651260"]
[WhiteElo "2075"]
[BlackElo "2463"]
[Result "0-1"]
[Round "06"]
[TimeControl "180+2"]
[Date "2023.03.21"]
[WhiteClock "0:00:15"]
[BlackClock "0:01:01"]

1. d4 {[%clk 0:03:00]}  Nf6 {[%clk 0:02:58]} 2. c4 {[%clk 0:03:01]}  c5 {[%clk 0:02:59]} 3. e3 {[%clk 0:02:59]}  g6 {[%clk 0:02:54]} 4. Nf3 {[%clk 0:02:58]}  Bg7 {[%clk 0:02:54]} 5. Be2 {[%clk 0:02:57]}  Nc6 {[%clk 0:02:54]} 6. O-O {[%clk 0:02:57]}  d6 {[%clk 0:02:53]} 7. d5 {[%clk 0:02:57]}  Na5 {[%clk 0:02:54]} 8. Nc3 {[%clk 0:02:57]}  O-O {[%clk 0:02:53]} 9. e4 {[%clk 0:02:56]}  e6 {[%clk 0:02:53]} 10. h3 {[%clk 0:02:55]}  exd5 {[%clk 0:02:53]} 11. cxd5 {[%clk 0:02:55]}  Re8 {[%clk 0:02:52]} 12. Nd2 {[%clk 0:02:52]}  a6 {[%clk 0:02:50]} 13. a4 {[%clk 0:02:51]}  Qc7 {[%clk 0:02:43]} 14. Re1 {[%clk 0:02:51]}  c4 {[%clk 0:02:40]} 15. Bf1 {[%clk 0:02:47]}  b6 {[%clk 0:02:39]} 16. Nf3 {[%clk 0:02:44]}  Nb3 {[%clk 0:02:33]} 17. Rb1 {[%clk 0:02:43]}  Rb8 {[%clk 0:02:30]} 18. Bf4 {[%clk 0:02:41]}  Nd7 {[%clk 0:02:27]} 19. Nd2 {[%clk 0:02:35]}  Nxd2 {[%clk 0:02:26]} 20. Qxd2 {[%clk 0:02:36]}  b5 {[%clk 0:02:26]} 21. axb5 {[%clk 0:02:17]}  axb5 {[%clk 0:02:26]} 22. b4 {[%clk 0:02:14]}  Ne5 {[%clk 0:02:15]} 23. Bg3 {[%clk 0:02:12]}  f5 {[%clk 0:02:10]} 24. f4 {[%clk 0:02:05]}  Nd3 {[%clk 0:02:10]} 25. Bxd3 {[%clk 0:02:04]}  cxd3 {[%clk 0:02:10]} 26. Rbc1 {[%clk 0:02:03]}  Qb6+ {[%clk 0:02:02]} 27. Kh2 {[%clk 0:02:00]}  fxe4 {[%clk 0:02:01]} 28. Nxe4 {[%clk 0:02:00]}  Bf5 {[%clk 0:01:52]} 29. Qxd3 {[%clk 0:01:54]}  Rbc8 {[%clk 0:01:52]} 30. Rxc8 {[%clk 0:01:29]}  Rxc8 {[%clk 0:01:51]} 31. Bf2 {[%clk 0:01:19]}  Qa6 {[%clk 0:01:37]} 32. Bd4 {[%clk 0:00:53]}  Rc4 {[%clk 0:01:34]} 33. Bxg7 {[%clk 0:00:46]}  Kxg7 {[%clk 0:01:32]} 34. Qb1 {[%clk 0:00:40]}  Qa3 {[%clk 0:01:26]} 35. g4 {[%clk 0:00:27]}  Bxe4 {[%clk 0:01:09]} 36. Rxe4 {[%clk 0:00:27]}  Rc1 {[%clk 0:01:07]} 37. Re7+ {[%clk 0:00:26]}  Kf8 {[%clk 0:01:06]} 38. Qe4 {[%clk 0:00:25]}  Qb2+ {[%clk 0:01:03]} 39. Kg3 {[%clk 0:00:24]}  Rg1+ {[%clk 0:01:02]} 40. Kf3 {[%clk 0:00:15]}  Rf1+ {[%clk 0:01:02]} 41. Kg3 {[%clk 0:00:15]}  Qf2# {[%clk 0:01:01]} 0-1


[Site "https://www.chess.com"]

[Event "Titled Tuesday Blitz March 21 Early 2023"]
[White "lisjakzlatko1"]
[Black "Sreyas Payyappat"]
[BlackFideId "46674969"]
[WhiteElo "2209"]
[BlackElo "2083"]
[Result "0-1"]
[Round "06"]
[TimeControl "180+2"]
[Date "2023.03.21"]
[WhiteClock "0:00:12"]
[BlackClock "0:00:38"]

1. e3 {[%clk 0:03:00]}  e5 {[%clk 0:02:59]} 2. e4 {[%clk 0:03:01]}  Nf6 {[%clk 0:02:56]} 3. Nf3 {[%clk 0:03:02]}  Nxe4 {[%clk 0:02:50]} 4. Nxe5 {[%clk 0:03:03]}  Qe7 {[%clk 0:02:49]} 5. d4 {[%clk 0:02:55]}  d6 {[%clk 0:02:47]} 6. Qe2 {[%clk 0:02:44]}  dxe5 {[%clk 0:02:45]} 7. Qxe4 {[%clk 0:02:43]}  exd4 {[%clk 0:02:43]} 8. Qxe7+ {[%clk 0:02:42]}  Bxe7 {[%clk 0:02:44]} 9. Bc4 {[%clk 0:02:42]}  O-O {[%clk 0:02:43]} 10. O-O {[%clk 0:02:40]}  Bd6 {[%clk 0:02:30]} 11. Nd2 {[%clk 0:02:38]}  Nc6 {[%clk 0:02:27]} 12. a3 {[%clk 0:02:29]}  Be6 {[%clk 0:02:21]} 13. Bxe6 {[%clk 0:02:24]}  fxe6 {[%clk 0:02:22]} 14. Nf3 {[%clk 0:02:23]}  e5 {[%clk 0:02:21]} 15. Re1 {[%clk 0:02:22]}  Rae8 {[%clk 0:02:15]} 16. Re4 {[%clk 0:02:21]}  Nb8 {[%clk 0:01:58]} 17. Bd2 {[%clk 0:02:19]}  Nd7 {[%clk 0:01:55]} 18. Rae1 {[%clk 0:02:16]}  c5 {[%clk 0:01:45]} 19. b4 {[%clk 0:02:11]}  b6 {[%clk 0:01:42]} 20. h3 {[%clk 0:02:05]}  Nf6 {[%clk 0:01:37]} 21. R4e2 {[%clk 0:02:01]}  e4 {[%clk 0:01:31]} 22. Ng5 {[%clk 0:01:51]}  e3 {[%clk 0:01:21]} 23. fxe3 {[%clk 0:01:47]}  h6 {[%clk 0:01:12]} 24. Nf3 {[%clk 0:01:04]}  Bg3 {[%clk 0:01:01]} 25. Rf1 {[%clk 0:00:50]}  Re4 {[%clk 0:00:58]} 26. c3 {[%clk 0:00:36]}  d3 {[%clk 0:00:53]} 27. Ref2 {[%clk 0:00:36]}  cxb4 {[%clk 0:00:43]} 28. axb4 {[%clk 0:00:30]}  Nd5 {[%clk 0:00:42]} 29. Ng5 {[%clk 0:00:19]}  Bxf2+ {[%clk 0:00:37]} 30. Rxf2 {[%clk 0:00:12]}  hxg5 {[%clk 0:00:38]} 0-1


[Site "https://www.chess.com"]

[Event "Titled Tuesday Blitz March 21 Early 2023"]
[White "Fernandez Hernandez, Gerardo"]
[Black "Palacio,Igor Da Paz"]
[WhiteFideId "2207400"]
[BlackFideId "2121140"]
[WhiteElo "2222"]
[BlackElo "2126"]
[Result "1-0"]
[Round "06"]
[TimeControl "180+2"]
[Date "2023.03.21"]
[WhiteClock "0:00:26"]
[BlackClock "0:00:04"]

1. e4 {[%clk 0:03:00]}  d6 {[%clk 0:03:00]} 2. d3 {[%clk 0:03:00]}  g6 {[%clk 0:02:59]} 3. g3 {[%clk 0:03:00]}  Bg7 {[%clk 0:02:59]} 4. Bg2 {[%clk 0:03:01]}  c5 {[%clk 0:02:58]} 5. f4 {[%clk 0:03:01]}  Nc6 {[%clk 0:02:58]} 6. Nf3 {[%clk 0:03:02]}  e6 {[%clk 0:02:59]} 7. O-O {[%clk 0:03:02]}  Nge7 {[%clk 0:02:59]} 8. c3 {[%clk 0:03:03]}  O-O {[%clk 0:02:55]} 9. Be3 {[%clk 0:03:03]}  b6 {[%clk 0:02:52]} 10. d4 {[%clk 0:03:03]}  cxd4 {[%clk 0:02:47]} 11. cxd4 {[%clk 0:03:04]}  Bb7 {[%clk 0:02:46]} 12. Nc3 {[%clk 0:02:59]}  d5 {[%clk 0:02:39]} 13. e5 {[%clk 0:02:59]}  Nf5 {[%clk 0:02:36]} 14. Bf2 {[%clk 0:02:59]}  h5 {[%clk 0:02:36]} 15. Rc1 {[%clk 0:02:55]}  Re8 {[%clk 0:02:36]} 16. h3 {[%clk 0:02:53]}  Ba6 {[%clk 0:02:23]} 17. Re1 {[%clk 0:02:49]}  Nb4 {[%clk 0:02:22]} 18. Qa4 {[%clk 0:02:45]}  Bf8 {[%clk 0:01:45]} 19. a3 {[%clk 0:02:33]}  Nd3 {[%clk 0:01:44]} 20. Qxa6 {[%clk 0:02:32]}  Nxe1 {[%clk 0:01:40]} 21. Rxe1 {[%clk 0:02:17]}  Rc8 {[%clk 0:01:29]} 22. Qd3 {[%clk 0:02:15]}  Qc7 {[%clk 0:01:18]} 23. g4 {[%clk 0:02:12]}  hxg4 {[%clk 0:01:17]} 24. hxg4 {[%clk 0:02:12]}  Ng7 {[%clk 0:01:14]} 25. Ng5 {[%clk 0:02:09]}  Be7 {[%clk 0:01:12]} 26. Bh4 {[%clk 0:01:53]}  Qc4 {[%clk 0:01:03]} 27. Qe3 {[%clk 0:01:36]}  Qb3 {[%clk 0:00:56]} 28. Qd2 {[%clk 0:01:35]}  a6 {[%clk 0:00:55]} 29. Nf3 {[%clk 0:01:32]}  Bxh4 {[%clk 0:00:53]} 30. Nxh4 {[%clk 0:01:32]}  b5 {[%clk 0:00:53]} 31. f5 {[%clk 0:01:27]}  exf5 {[%clk 0:00:49]} 32. Bxd5 {[%clk 0:01:15]}  Rxc3 {[%clk 0:00:32]} 33. Bxb3 {[%clk 0:01:13]}  Rxb3 {[%clk 0:00:33]} 34. gxf5 {[%clk 0:01:10]}  Rg3+ {[%clk 0:00:27]} 35. Kh2 {[%clk 0:01:07]}  Rg4 {[%clk 0:00:24]} 36. Kh3 {[%clk 0:00:49]}  gxf5 {[%clk 0:00:22]} 37. Nxf5 {[%clk 0:00:45]}  Rg6 {[%clk 0:00:19]} 38. Nxg7 {[%clk 0:00:37]}  Kxg7 {[%clk 0:00:19]} 39. Re4 {[%clk 0:00:32]}  Rg8 {[%clk 0:00:14]} 40. Rg4 {[%clk 0:00:30]}  Rh8+ {[%clk 0:00:14]} 41. Kg3 {[%clk 0:00:29]}  Rh1 {[%clk 0:00:12]} 42. Rxg6+ {[%clk 0:00:29]}  fxg6 {[%clk 0:00:11]} 43. Qf2 {[%clk 0:00:27]}  Rf1 {[%clk 0:00:04]} 44. Qxf1 {[%clk 0:00:26]} 1-0


[Site "https://www.chess.com"]

[Event "Titled Tuesday Blitz March 21 Early 2023"]
[White "Escanor89"]
[Black "Jaskolka, Tomasz"]
[BlackFideId "1170791"]
[WhiteElo "2389"]
[BlackElo "2155"]
[Result "1-0"]
[Round "06"]
[TimeControl "180+2"]
[Date "2023.03.21"]
[WhiteClock "0:00:19"]
[BlackClock "0:00:19"]

1. c3 {[%clk 0:03:00]}  d5 {[%clk 0:02:58]} 2. d4 {[%clk 0:02:58]}  c6 {[%clk 0:02:56]} 3. Bf4 {[%clk 0:02:57]}  a6 {[%clk 0:02:56]} 4. e3 {[%clk 0:02:57]}  Bf5 {[%clk 0:02:56]} 5. Nd2 {[%clk 0:02:57]}  Nd7 {[%clk 0:02:56]} 6. h3 {[%clk 0:02:57]}  e6 {[%clk 0:02:56]} 7. Ngf3 {[%clk 0:02:56]}  h6 {[%clk 0:02:57]} 8. Be2 {[%clk 0:02:56]}  Be7 {[%clk 0:02:55]} 9. O-O {[%clk 0:02:57]}  Ngf6 {[%clk 0:02:55]} 10. Re1 {[%clk 0:02:57]}  g5 {[%clk 0:02:53]} 11. Bh2 {[%clk 0:02:57]}  g4 {[%clk 0:02:53]} 12. hxg4 {[%clk 0:02:55]}  Nxg4 {[%clk 0:02:53]} 13. Bf4 {[%clk 0:02:49]}  Bg5 {[%clk 0:02:50]} 14. Nf1 {[%clk 0:02:48]}  Bxf4 {[%clk 0:02:49]} 15. exf4 {[%clk 0:02:48]}  Qf6 {[%clk 0:02:31]} 16. a4 {[%clk 0:02:29]}  h5 {[%clk 0:02:15]} 17. Ne5 {[%clk 0:02:24]}  Ndxe5 {[%clk 0:02:00]} 18. dxe5 {[%clk 0:02:14]}  Qh4 {[%clk 0:01:57]} 19. Qd4 {[%clk 0:02:05]}  Rg8 {[%clk 0:01:49]} 20. b4 {[%clk 0:01:48]}  Kd7 {[%clk 0:01:11]} 21. Bf3 {[%clk 0:01:37]}  Rg6 {[%clk 0:01:02]} 22. b5 {[%clk 0:01:35]}  Rag8 {[%clk 0:00:59]} 23. bxc6+ {[%clk 0:01:34]}  bxc6 {[%clk 0:00:59]} 24. Rab1 {[%clk 0:01:25]}  Bxb1 {[%clk 0:00:59]} 25. Rxb1 {[%clk 0:01:23]}  Rc8 {[%clk 0:00:32]} 26. c4 {[%clk 0:01:16]}  c5 {[%clk 0:00:18]} 27. Qd2 {[%clk 0:01:09]}  d4 {[%clk 0:00:18]} 28. Ng3 {[%clk 0:01:00]}  Nxf2 {[%clk 0:00:13]} 29. Rb7+ {[%clk 0:00:57]}  Ke8 {[%clk 0:00:12]} 30. Nxh5 {[%clk 0:00:26]}  Nh3+ {[%clk 0:00:12]} 31. Kf1 {[%clk 0:00:24]}  Rh6 {[%clk 0:00:03]} 32. g3 {[%clk 0:00:11]}  Qd8 {[%clk 0:00:01]} 33. Kg2 {[%clk 0:00:08]}  Kf8 {[%clk 0:00:02]} 34. Kxh3 {[%clk 0:00:08]}  Rb8 {[%clk 0:00:02]} 35. Rxb8 {[%clk 0:00:08]}  Qxb8 {[%clk 0:00:03]} 36. Be4 {[%clk 0:00:07]}  Rxh5+ {[%clk 0:00:02]} 37. Kg4 {[%clk 0:00:07]}  Rh8 {[%clk 0:00:03]} 38. Qa5 {[%clk 0:00:07]}  Rg8+ {[%clk 0:00:03]} 39. Kh3 {[%clk 0:00:07]}  Qc8 {[%clk 0:00:03]} 40. Qb6 {[%clk 0:00:07]}  Rh8+ {[%clk 0:00:04]} 41. Kg2 {[%clk 0:00:06]}  Rg8 {[%clk 0:00:04]} 42. Qd6+ {[%clk 0:00:06]}  Kg7 {[%clk 0:00:04]} 43. Qe7 {[%clk 0:00:06]}  Re8 {[%clk 0:00:04]} 44. Qf6+ {[%clk 0:00:06]}  Kf8 {[%clk 0:00:05]} 45. g4 {[%clk 0:00:04]}  Qd8 {[%clk 0:00:04]} 46. Qh8+ {[%clk 0:00:04]}  Ke7 {[%clk 0:00:05]} 47. Qh4+ {[%clk 0:00:05]}  Kd7 {[%clk 0:00:05]} 48. Qh7 {[%clk 0:00:05]}  Qe7 {[%clk 0:00:05]} 49. g5 {[%clk 0:00:06]}  Rf8 {[%clk 0:00:05]} 50. Kg3 {[%clk 0:00:06]}  f5 {[%clk 0:00:05]} 51. exf6 {[%clk 0:00:06]}  Qf7 {[%clk 0:00:04]} 52. Qh1 {[%clk 0:00:03]}  Rg8 {[%clk 0:00:03]} 53. Qb1 {[%clk 0:00:03]}  Qxf6 {[%clk 0:00:03]} 54. Qb7+ {[%clk 0:00:03]}  Kd8 {[%clk 0:00:04]} 55. Qb8+ {[%clk 0:00:03]}  Kd7 {[%clk 0:00:03]} 56. Qxg8 {[%clk 0:00:04]}  Qe7 {[%clk 0:00:03]} 57. Qh7 {[%clk 0:00:04]}  e5 {[%clk 0:00:02]} 58. Qxe7+ {[%clk 0:00:04]}  Kxe7 {[%clk 0:00:03]} 59. f5 {[%clk 0:00:05]}  Kf7 {[%clk 0:00:04]} 60. f6 {[%clk 0:00:06]}  a5 {[%clk 0:00:04]} 61. Kg4 {[%clk 0:00:06]}  Ke6 {[%clk 0:00:05]} 62. Kf3 {[%clk 0:00:06]}  Kf7 {[%clk 0:00:06]} 63. Ke2 {[%clk 0:00:07]}  Ke6 {[%clk 0:00:07]} 64. Kd3 {[%clk 0:00:07]}  Kf7 {[%clk 0:00:07]} 65. Bd5+ {[%clk 0:00:08]}  Kg6 {[%clk 0:00:07]} 66. Ke4 {[%clk 0:00:09]}  Kh7 {[%clk 0:00:07]} 67. Kxe5 {[%clk 0:00:09]}  Kg6 {[%clk 0:00:08]} 68. Be4+ {[%clk 0:00:09]}  Kf7 {[%clk 0:00:08]} 69. Bd3 {[%clk 0:00:09]}  Kg8 {[%clk 0:00:09]} 70. Kf5 {[%clk 0:00:10]}  Kh8 {[%clk 0:00:10]} 71. g6 {[%clk 0:00:11]}  Kg8 {[%clk 0:00:11]} 72. g7 {[%clk 0:00:11]}  Kf7 {[%clk 0:00:11]} 73. Kg5 {[%clk 0:00:11]}  Kg8 {[%clk 0:00:12]} 74. Kg4 {[%clk 0:00:11]}  Kf7 {[%clk 0:00:12]} 75. Kf4 {[%clk 0:00:12]}  Kg8 {[%clk 0:00:13]} 76. Ke5 {[%clk 0:00:12]}  Kf7 {[%clk 0:00:13]} 77. Kd5 {[%clk 0:00:13]}  Kg8 {[%clk 0:00:14]} 78. Kxc5 {[%clk 0:00:14]}  Kf7 {[%clk 0:00:15]} 79. Kxd4 {[%clk 0:00:15]}  Ke6 {[%clk 0:00:15]} 80. c5 {[%clk 0:00:15]}  Kd7 {[%clk 0:00:16]} 81. g8=Q {[%clk 0:00:15]}  Kc7 {[%clk 0:00:16]} 82. Qf7+ {[%clk 0:00:16]}  Kc6 {[%clk 0:00:17]} 83. Qe6+ {[%clk 0:00:16]}  Kb7 {[%clk 0:00:17]} 84. Qd6 {[%clk 0:00:17]}  Kc8 {[%clk 0:00:17]} 85. f7 {[%clk 0:00:17]}  Kb7 {[%clk 0:00:18]} 86. f8=Q {[%clk 0:00:18]}  Ka7 {[%clk 0:00:19]} 87. Qfe7+ {[%clk 0:00:18]}  Ka8 {[%clk 0:00:19]} 88. Qdd8# {[%clk 0:00:19]} 1-0


[Site "https://www.chess.com"]

[Event "Titled Tuesday Blitz March 21 Early 2023"]
[White "Miszler, Levente"]
[Black "Kraus, Tomas"]
[WhiteFideId "763276"]
[BlackFideId "331708"]
[WhiteElo "2176"]
[BlackElo "2389"]
[Result "1-0"]
[Round "06"]
[TimeControl "180+2"]
[Date "2023.03.21"]
[WhiteClock "0:00:57"]
[BlackClock "0:00:09"]

1. Nf3 {[%clk 0:03:00]}  d5 {[%clk 0:02:59]} 2. c4 {[%clk 0:03:01]}  d4 {[%clk 0:02:59]} 3. e3 {[%clk 0:03:02]}  c5 {[%clk 0:02:58]} 4. exd4 {[%clk 0:03:02]}  cxd4 {[%clk 0:02:58]} 5. b4 {[%clk 0:03:02]}  Nf6 {[%clk 0:02:51]} 6. Bb2 {[%clk 0:02:57]}  Bg4 {[%clk 0:02:50]} 7. Qa4+ {[%clk 0:02:52]}  Bd7 {[%clk 0:02:42]} 8. Qb3 {[%clk 0:02:48]}  a5 {[%clk 0:02:24]} 9. bxa5 {[%clk 0:02:41]}  Nc6 {[%clk 0:02:15]} 10. Nxd4 {[%clk 0:02:35]}  Nxd4 {[%clk 0:02:15]} 11. Bxd4 {[%clk 0:02:36]}  Rxa5 {[%clk 0:02:06]} 12. Bb6 {[%clk 0:02:35]}  Re5+ {[%clk 0:02:03]} 13. Be2 {[%clk 0:02:34]}  Qc8 {[%clk 0:01:57]} 14. d4 {[%clk 0:02:33]}  Rg5 {[%clk 0:01:49]} 15. O-O {[%clk 0:02:25]}  Bh3 {[%clk 0:01:41]} 16. Bf3 {[%clk 0:02:24]}  h5 {[%clk 0:01:10]} 17. Nd2 {[%clk 0:02:07]}  Rh6 {[%clk 0:01:03]} 18. Kh1 {[%clk 0:02:04]}  Bg4 {[%clk 0:00:40]} 19. d5 {[%clk 0:01:52]}  h4 {[%clk 0:00:18]} 20. Be3 {[%clk 0:01:49]}  Bxf3 {[%clk 0:00:17]} 21. Nxf3 {[%clk 0:01:48]}  Rxg2 {[%clk 0:00:15]} 22. Qb5+ {[%clk 0:01:15]}  Nd7 {[%clk 0:00:14]} 23. Kxg2 {[%clk 0:01:10]}  h3+ {[%clk 0:00:13]} 24. Kh1 {[%clk 0:01:10]}  Qc7 {[%clk 0:00:13]} 25. Bxh6 {[%clk 0:01:05]}  gxh6 {[%clk 0:00:12]} 26. Rg1 {[%clk 0:01:02]}  Qf4 {[%clk 0:00:12]} 27. Rg3 {[%clk 0:01:01]}  Bg7 {[%clk 0:00:11]} 28. Qxb7 {[%clk 0:00:58]}  Bxa1 {[%clk 0:00:09]} 29. Qc8# {[%clk 0:00:57]} 1-0


[Site "https://www.chess.com"]

[Event "Titled Tuesday Blitz March 21 Early 2023"]
[White "Van Osch, Mees"]
[Black "Spitzl, Vinzent"]
[WhiteFideId "1035967"]
[BlackFideId "12901253"]
[WhiteElo "2324"]
[BlackElo "2225"]
[Result "1-0"]
[Round "06"]
[TimeControl "180+2"]
[Date "2023.03.21"]
[WhiteClock "0:00:50"]
[BlackClock "0:00:11"]

1. e4 {[%clk 0:02:55]}  c6 {[%clk 0:02:55]} 2. d4 {[%clk 0:02:54]}  d5 {[%clk 0:02:56]} 3. Nc3 {[%clk 0:02:54]}  dxe4 {[%clk 0:02:56]} 4. Nxe4 {[%clk 0:02:55]}  Nf6 {[%clk 0:02:57]} 5. Nxf6+ {[%clk 0:02:54]}  exf6 {[%clk 0:02:58]} 6. c3 {[%clk 0:02:52]}  Bd6 {[%clk 0:02:58]} 7. Bd3 {[%clk 0:02:52]}  O-O {[%clk 0:02:56]} 8. Ne2 {[%clk 0:02:53]}  Re8 {[%clk 0:02:54]} 9. Qc2 {[%clk 0:02:54]}  h5 {[%clk 0:02:54]} 10. Bd2 {[%clk 0:02:47]}  Be6 {[%clk 0:02:43]} 11. O-O-O {[%clk 0:02:40]}  Nd7 {[%clk 0:02:39]} 12. Kb1 {[%clk 0:02:39]}  h4 {[%clk 0:02:38]} 13. h3 {[%clk 0:02:37]}  Rc8 {[%clk 0:02:34]} 14. g3 {[%clk 0:02:38]}  Qa5 {[%clk 0:02:20]} 15. c4 {[%clk 0:02:31]}  Qc7 {[%clk 0:02:12]} 16. gxh4 {[%clk 0:02:30]}  b5 {[%clk 0:02:08]} 17. c5 {[%clk 0:02:30]}  Bf8 {[%clk 0:02:08]} 18. h5 {[%clk 0:02:28]}  f5 {[%clk 0:02:08]} 19. h6 {[%clk 0:02:27]}  g6 {[%clk 0:02:07]} 20. h4 {[%clk 0:02:27]}  Nf6 {[%clk 0:02:06]} 21. h5 {[%clk 0:02:26]}  Ne4 {[%clk 0:02:04]} 22. hxg6 {[%clk 0:02:23]}  fxg6 {[%clk 0:02:03]} 23. Nf4 {[%clk 0:02:15]}  Kh7 {[%clk 0:01:57]} 24. Be3 {[%clk 0:01:40]}  Bf7 {[%clk 0:01:44]} 25. Rdg1 {[%clk 0:01:34]}  Qa5 {[%clk 0:01:33]} 26. a3 {[%clk 0:01:25]}  Rcd8 {[%clk 0:01:23]} 27. f3 {[%clk 0:01:25]}  b4 {[%clk 0:00:50]} 28. fxe4 {[%clk 0:01:19]}  bxa3 {[%clk 0:00:40]} 29. Bd2 {[%clk 0:01:05]}  Qc7 {[%clk 0:00:17]} 30. exf5 {[%clk 0:01:00]}  gxf5 {[%clk 0:00:15]} 31. Bxf5+ {[%clk 0:00:56]}  Kh8 {[%clk 0:00:16]} 32. h7 {[%clk 0:00:55]}  Qe7 {[%clk 0:00:13]} 33. Rg8+ {[%clk 0:00:49]}  Bxg8 {[%clk 0:00:12]} 34. hxg8=Q+ {[%clk 0:00:50]}  Kxg8 {[%clk 0:00:13]} 35. Be6+ {[%clk 0:00:49]}  Kg7 {[%clk 0:00:11]} 36. Qh7+ {[%clk 0:00:50]} 1-0


[Site "https://www.chess.com"]

[Event "Titled Tuesday Blitz March 21 Early 2023"]
[White "Castellanos Gomez, Alejandro"]
[Black "sebastianmarinp"]
[WhiteFideId "22284141"]
[WhiteElo "2158"]
[BlackElo "2279"]
[Result "0-1"]
[Round "06"]
[TimeControl "180+2"]
[Date "2023.03.21"]
[WhiteClock "0:01:56"]
[BlackClock "0:00:30"]

1. d4 {[%clk 0:03:00]}  Nf6 {[%clk 0:02:59]} 2. Bf4 {[%clk 0:03:01]}  d5 {[%clk 0:02:58]} 3. e3 {[%clk 0:03:01]}  c5 {[%clk 0:02:58]} 4. c3 {[%clk 0:03:02]}  Nc6 {[%clk 0:02:58]} 5. Nd2 {[%clk 0:03:02]}  Bf5 {[%clk 0:02:46]} 6. Qb3 {[%clk 0:03:01]}  Qc8 {[%clk 0:02:43]} 7. Ngf3 {[%clk 0:03:00]}  c4 {[%clk 0:02:36]} 8. Qa4 {[%clk 0:02:57]}  a6 {[%clk 0:02:29]} 9. b3 {[%clk 0:02:54]}  b5 {[%clk 0:02:25]} 10. Qa3 {[%clk 0:02:53]}  e5 {[%clk 0:02:19]} 11. Qb2 {[%clk 0:02:51]}  exf4 {[%clk 0:02:18]} 12. exf4 {[%clk 0:02:52]}  Bd6 {[%clk 0:02:11]} 13. Ne5 {[%clk 0:02:52]}  O-O {[%clk 0:02:07]} 14. f3 {[%clk 0:02:52]}  Re8 {[%clk 0:01:41]} 15. Kf2 {[%clk 0:02:49]}  Ne7 {[%clk 0:01:31]} 16. g4 {[%clk 0:02:48]}  Bd7 {[%clk 0:01:26]} 17. h4 {[%clk 0:02:48]}  Ng6 {[%clk 0:01:25]} 18. Kg3 {[%clk 0:02:45]}  Bc6 {[%clk 0:01:11]} 19. h5 {[%clk 0:02:43]}  Nxf4 {[%clk 0:01:05]} 20. Kxf4 {[%clk 0:02:44]}  Nd7 {[%clk 0:01:05]} 21. Kg3 {[%clk 0:02:39]}  f6 {[%clk 0:01:05]} 22. f4 {[%clk 0:02:33]}  fxe5 {[%clk 0:01:03]} 23. dxe5 {[%clk 0:02:32]}  Nxe5 {[%clk 0:00:57]} 24. fxe5 {[%clk 0:02:25]}  Bxe5+ {[%clk 0:00:51]} 25. Kh3 {[%clk 0:02:24]}  d4 {[%clk 0:00:49]} 26. cxd4 {[%clk 0:02:19]}  Bxh1 {[%clk 0:00:48]} 27. Nxc4 {[%clk 0:02:14]}  Bc7 {[%clk 0:00:37]} 28. Ne5 {[%clk 0:02:01]}  Bxe5 {[%clk 0:00:31]} 29. dxe5 {[%clk 0:02:01]}  Bf3 {[%clk 0:00:31]} 30. Re1 {[%clk 0:01:56]}  Qxg4+ {[%clk 0:00:30]} 0-1


[Site "https://www.chess.com"]

[Event "Titled Tuesday Blitz March 21 Early 2023"]
[White "Topalov, Aleksandar"]
[Black "Rose, Felix"]
[WhiteFideId "925659"]
[BlackFideId "5105722"]
[WhiteElo "2151"]
[BlackElo "2039"]
[Result "1-0"]
[Round "06"]
[TimeControl "180+2"]
[Date "2023.03.21"]
[WhiteClock "0:00:16"]
[BlackClock "0:00:02"]

1. b3 {[%clk 0:03:00]}  e5 {[%clk 0:02:59]} 2. Bb2 {[%clk 0:02:35]}  Nc6 {[%clk 0:02:59]} 3. c4 {[%clk 0:02:34]}  Nf6 {[%clk 0:02:58]} 4. e3 {[%clk 0:02:34]}  d5 {[%clk 0:02:56]} 5. cxd5 {[%clk 0:02:34]}  Nxd5 {[%clk 0:02:57]} 6. a3 {[%clk 0:02:34]}  Be6 {[%clk 0:02:55]} 7. Qc2 {[%clk 0:02:34]}  Qd7 {[%clk 0:02:53]} 8. Nf3 {[%clk 0:02:34]}  f6 {[%clk 0:02:52]} 9. d3 {[%clk 0:02:33]}  O-O-O {[%clk 0:02:50]} 10. Nbd2 {[%clk 0:02:33]}  g5 {[%clk 0:02:49]} 11. h3 {[%clk 0:02:33]}  h5 {[%clk 0:02:49]} 12. g3 {[%clk 0:02:27]}  Kb8 {[%clk 0:02:48]} 13. d4 {[%clk 0:02:18]}  exd4 {[%clk 0:02:00]} 14. Nxd4 {[%clk 0:02:18]}  Nxd4 {[%clk 0:02:00]} 15. Bxd4 {[%clk 0:02:18]}  Bg7 {[%clk 0:01:58]} 16. O-O-O {[%clk 0:02:05]}  f5 {[%clk 0:01:45]} 17. Nc4 {[%clk 0:02:03]}  Bxd4 {[%clk 0:01:25]} 18. Rxd4 {[%clk 0:02:02]}  Qe7 {[%clk 0:00:58]} 19. b4 {[%clk 0:01:41]}  c5 {[%clk 0:00:48]} 20. bxc5 {[%clk 0:01:40]}  Qxc5 {[%clk 0:00:42]} 21. Kb2 {[%clk 0:01:34]}  Rc8 {[%clk 0:00:41]} 22. Bd3 {[%clk 0:01:34]}  Nb6 {[%clk 0:00:35]} 23. Rc1 {[%clk 0:01:23]}  Bxc4 {[%clk 0:00:13]} 24. Bxc4 {[%clk 0:01:18]}  Nxc4+ {[%clk 0:00:10]} 25. Rxc4 {[%clk 0:01:18]}  Qb5+ {[%clk 0:00:10]} 26. Ka2 {[%clk 0:01:12]}  Rxc4 {[%clk 0:00:07]} 27. Qxc4 {[%clk 0:01:11]}  Qa5 {[%clk 0:00:07]} 28. Rc2 {[%clk 0:01:07]}  a6 {[%clk 0:00:06]} 29. Qd4 {[%clk 0:00:57]}  Rd8 {[%clk 0:00:05]} 30. Qc4 {[%clk 0:00:51]}  Rd2 {[%clk 0:00:03]} 31. Kb2 {[%clk 0:00:40]}  Qb6+ {[%clk 0:00:03]} 32. Kc1 {[%clk 0:00:40]}  Rxc2+ {[%clk 0:00:03]} 33. Kxc2 {[%clk 0:00:40]}  Qd6 {[%clk 0:00:03]} 34. a4 {[%clk 0:00:31]}  Qd7 {[%clk 0:00:01]} 35. Kb3 {[%clk 0:00:19]}  Qe8 {[%clk 0:00:02]} 36. Qd5 {[%clk 0:00:16]} 1-0


[Site "https://www.chess.com"]